Cogmind - Beta 14 @@@ ROGUE MODE // 2024.08.20 @ 18:46:04 Player: Daffa0360 Result: Destroyed by QW-M77(R) with Subdweller Machine Gun Performance ------------- Evolutions (0) 0 Regions Visited (3) 600 Robots Destroyed (18) 90 Value Destroyed (502) 502 Prototype IDs (11) 220 Alien Tech Used (0) 0 Bonus (0) 0 TOTAL SCORE: 1412 Bonus ------- None Cogmind --------- Core Integrity 0/250 Matter 300/300 Energy 123/125 System Corruption 0% Temperature Cool (0) Movement Rolling (165) Ox5 Location -10/Subcaves Parts ------- > --- POWER (1) -------- Light Ion Engine > --- PROPULSION (2) --- Compact Wheel Subdweller Monowheel > --- UTILITY (2) ------ Humpback > --- WEAPON (2) ------- Subdweller Machine Gun Flail > --- INVENTORY (35) --- Ion Engine Meta Core Aluminum Leg Wheel Compact Wheel Large Storage Unit Sensor Array Improved Terrain Scanner Particle Gun Datajack Mining Laser Plasma Cutter Mining Claw Peak State ------------ > --- POWER ------------ Ion Engine > --- PROPULSION ------- Improved Treads Improved Treads > --- UTILITY ---------- Large Storage Unit Seismic Detector > --- WEAPON ----------- Assault Rifle Flail > --- INVENTORY -------- Light Ion Engine Meta Core Aluminum Leg Wheel Compact Wheel Compact Wheel Sensor Array Improved Terrain Scanner Medium Laser Particle Gun Datajack Mining Laser Plasma Cutter Mining Claw [Rating: 13] Favorites ----------- Power Ion Engine Engine Ion Engine Propulsion Improved Treads Treads Improved Treads Wheel Compact Wheel Utility Large Storage Unit Device Seismic Detector Storage Large Storage Unit Weapon Assault Rifle Energy Gun Medium Laser Ballistic Gun Assault Rifle Impact Weapon Flail Build | -11 -10 -10 -10 ------- Run | Yrd Mat Min Sub Slots Evolved . | . . . . Power . | . . . . Propulsion . | . . . . Utility . | . . . . Weapon . | . . . . Parts Attached 21 | 6 1 3 11 Power 4 | 1 . 1 2 Engine 4 | 1 . 1 2 Core . | . . . . Reactor . | . . . . Propulsion 6 | 2 . 2 2 Treads 2 | . . 2 . Leg . | . . . . Wheel 4 | 2 . . 2 Hover . | . . . . Flight . | . . . . Utility 4 | 1 1 . 2 Device 1 | . . . 1 Storage 3 | 1 1 . 1 Processor . | . . . . Hackware . | . . . . Protection . | . . . . Artifact . | . . . . Weapon 7 | 2 . . 5 Energy Gun 3 | 1 . . 2 Energy Cannon . | . . . . Ballistic Gun 2 | 1 . . 1 Ballistic Cannon . | . . . . Launcher . | . . . . Special Weapon . | . . . . Impact Weapon 2 | . . . 2 Slashing Weapon . | . . . . Piercing Weapon . | . . . . Special Melee Weapon . | . . . . Unidentified Prototypes . | . . . . Parts Lost 7 | . . 1 6 Power 2 | . . 1 1 Propulsion 2 | . . . 2 Utility 1 | . . . 1 Weapon 2 | . . . 2 Highest Loss Streak 2 | . . 1 2 To Critical Strikes . | . . . . Average Slot Usage (%) 88 | . 96 87 87 Engine 12 | . 14 13 10 Treads 16 | . . 23 16 Wheel 11 | . 28 4 10 Device 3 | . . . 6 Storage 15 | . 24 16 14 Energy Gun 8 | . 14 14 5 Ballistic Gun 13 | . 14 14 13 Impact Weapon 5 | . . . 9 Peak Build Rating 13 | 6 8 9 13 Average Rating 10 | 5 7 8 11 On Entrance 5 | . 6 8 9 Naked Turns . | . . . . Heaviest Build 209 | 14 34 34 209 Greatest Support 46 | 26 26 46 46 Greatest Overweight (x) 10 | . 1 1 10 Average Overweight (x) 1 | . . . 1 Largest Inventory Capacity 35 | 8 15 15 35 Average Capacity 18 | 6 13 15 22 Most Carried 15 | 5 12 14 15 Average Carried 12 | 2 8 12 13 Final Capacity 35 | 8 15 15 35 Final Carried 14 | 5 12 14 13 Class Distribution -------------------- 77% | Mutant 22% | Hauler-Mutant Dominant Class ---------------- Mutant | -10/Materials Mutant | -10/Mines Mutant | -10/Subcaves Resources | -11 -10 -10 -10 ----------- Run | Yrd Mat Min Sub Matter Collected 545 | 284 . 131 130 Remotely . | . . . . Salvage Created 664 | 98 23 282 261 Parts 44 | 8 3 16 17 Haulers Intercepted . | . . . . Recyclers Shooed . | . . . . Parts Field Recycled . | . . . . Retrieved Matter . | . . . . Parts Self-Destructed 9 | . . . 9 Prevented . | . . . . Kills | -11 -10 -10 -10 ------- Run | Yrd Mat Min Sub Combat Hostiles Destroyed 14 | . . 8 6 Melee 1 | . . . 1 Guns 12 | . . 8 4 Classes Destroyed 6 | 2 1 2 1 Tunneler 2 | 2 . . . Recycler 1 | 1 . . . Watcher 1 | . 1 . . Swarmer 3 | . . 3 . Grunt 5 | . . 5 . Subdweller 6 | . . . 6 Best Kill Streak 3 | 1 1 3 1 Combat Bots Only 3 | . . 3 1 Max Kills in Single Turn 2 | 1 1 2 1 Gunslinging . | . . . . Exploded . | . . . . Melee 1 | . . . 1 Uniques/NPCs Destroyed . | . . . . Combat | -11 -10 -10 -10 -------- Run | Yrd Mat Min Sub Hostile Shots Fired 121 | . 9 62 50 Missed 36 | . 1 16 19 Damage Taken 1309 | . 65 561 683 Core 250 | . 19 76 155 Absorbed by Shields . | . . . . Core Remaining (%) 100 | 100 . . . Volleys Fired 64 | 8 4 28 24 Largest 2 | 2 2 2 2 Hottest 115 | 70 70 70 115 Shots Fired 124 | 16 8 56 44 Gun 124 | 16 8 56 44 Cannon . | . . . . Launcher . | . . . . Special . | . . . . Kinetic 56 | 8 4 28 16 Thermal 68 | 8 4 28 28 Explosive . | . . . . Electromagnetic . | . . . . Robot Hit Streak 12 | 7 3 12 9 Robot Miss Streak 3 | 2 1 3 2 Penetration Max . | . . . . Secondary Targets 2 | . . 2 . Max Gunslinging Chain 1 | . . 1 . Shots Hit Robots 98 | 14 5 42 37 Core Hits 31 | 4 1 16 10 Critical Kills . | . . . . Critical Parts Destroyed . | . . . . Critical Strikes 5 | 2 1 2 . Burn 5 | 2 1 2 . Melee Attacks 21 | . . . 21 Impact 21 | . . . 21 Slashing . | . . . . Piercing . | . . . . Sneak Attacks . | . . . . Combat Hostiles . | . . . . Follow-up Attacks . | . . . . Damage Inflicted 1530 | 182 65 547 736 Guns 1217 | 182 65 547 423 Cannons . | . . . . Explosions . | . . . . Melee 313 | . . . 313 Ramming . | . . . . Kinetic 581 | 96 52 243 190 Thermal 636 | 86 13 304 233 Explosive . | . . . . Electromagnetic . | . . . . Impact 313 | . . . 313 Slashing . | . . . . Piercing . | . . . . Highest Corruption . | . . . . Average Corruption . | . . . . Corruption Purged . | . . . . Corruption Blocked . | . . . . Overload Shots . | . . . . Overflow Damage 41 | . . . 41 Projectiles . | . . . . Explosions . | . . . . Melee 41 | . . . 41 Knockbacks 2 | . . . 2 Impact 2 | . . . 2 Kinetic . | . . . . Secondary . | . . . . Self-Inflicted Damage . | . . . . Shots . | . . . . Rammed . | . . . . Targets Rammed . | . . . . Kicked . | . . . . Crushed . | . . . . Highest Temperature 198 | 36 27 198 7 Average Temperature 59 | 13 12 79 3 Received Heat Transfer 399 | . . 309 90 Siege Activations . | . . . . Robots Corrupted 1 | . . . 1 Combat Hostiles 1 | . . . 1 Parts Fried . | . . . . Impact Corruptions 2 | . . . 2 Robots Melted . | . . . . Combat Hostiles . | . . . . Parts Melted 4 | . . 4 . Heat Transferred 2146 | 407 111 1036 592 Parts Sabotaged . | . . . . Parts Stolen . | . . . . Parts Stripped . | . . . . Power Chain Reactions . | . . . . Alert | -11 -10 -10 -10 ------- Run | Yrd Mat Min Sub Peak Influence 162 | 15 31 162 . Initial 12 | . 9 12 . Average 53 | 6 23 75 . Maximum Alert Level . | . . . . Low Security (%) 100 | 100 100 100 . Level 1 . | . . . . Level 2 . | . . . . Level 3 . | . . . . Level 4 . | . . . . Level 5 . | . . . . High Security . | . . . . Max Security . | . . . . Squads Dispatched . | . . . . Investigation . | . . . . Extermination . | . . . . Reinforcement . | . . . . Assault . | . . . . Garrison . | . . . . Intercept . | . . . . Searches Triggered . | . . . . Construction Impeded . | . . . . Haulers Reinforced . | . . . . Active Scanning Responses . | . . . . Cargo Convoy Interrupts . | . . . . Stealth | -11 -10 -10 -10 --------- Run | Yrd Mat Min Sub Distress Signals . | . . . . Communications Jammed . | . . . . Distress Signals . | . . . . Times Spotted 29 | . 6 13 10 Peak Tracking Total 5 | . 5 4 2 Tactical Retreats 3 | . . 1 2 Traps | -11 -10 -10 -10 ------- Run | Yrd Mat Min Sub Traps Triggered . | . . . . Indirectly . | . . . . Trap Hack Attempts . | . . . . Triggered . | . . . . Disarmed . | . . . . Reprogrammed . | . . . . Reused . | . . . . Traps Extracted . | . . . . Installed . | . . . . Triggered . | . . . . Machines | -11 -10 -10 -10 ---------- Run | Yrd Mat Min Sub Machines Disabled 1 | . . . 1 Max in Single Turn 1 | . . . 1 Machines Repaired . | . . . . Machines Dismantled . | . . . . Machines Sabotaged . | . . . . Overloaded Fab Kills . | . . . . Hacking | -11 -10 -10 -10 --------- Run | Yrd Mat Min Sub Machines Accessed 2 | . 1 . 1 Terminals 1 | . 1 . . Fabricators . | . . . . Repair Stations . | . . . . Recycling Units . | . . . . Scanalyzers . | . . . . Garrison Access . | . . . . Total Hacks 10 | . 1 . 9 Successful 9 | . . . 9 Failed 1 | . 1 . . Catastrophic 1 | . 1 . . Database Lockouts . | . . . . Manual . | . . . . Terminals 1 | . 1 . . Fabricators . | . . . . Repair Stations . | . . . . Recycling Units . | . . . . Scanalyzers . | . . . . Garrison Access . | . . . . Terminal Hacks 9 | . . . 9 Record 8 | . . . 8 Derelict Proto ID Bank 1 | . . . 1 Fabricator Hacks . | . . . . Repair Station Hacks . | . . . . Recycling Unit Hacks . | . . . . Scanalyzer . | . . . . Garrison Access Hacks . | . . . . Unauthorized Hacks . | . . . . Terminals . | . . . . Fabricators . | . . . . Repair Stations . | . . . . Recycling Units . | . . . . Scanalyzers . | . . . . Garrison Access . | . . . . Data Cores Recovered . | . . . . Used . | . . . . Hacking Detections 1 | . 1 . . Full Trace Events . | . . . . Feedback Events . | . . . . Feedback Blocked . | . . . . Robot Schematics Acquired . | . . . . Robots Built . | . . . . Authchips . | . . . . Time . | . . . . Total Robot Build Rating . | . . . . Part Schematics Acquired . | . . . . Parts Built . | . . . . Authchips . | . . . . Time . | . . . . Total Part Build Rating . | . . . . Parts Repaired . | . . . . Time . | . . . . Parts Recycled . | . . . . Recycled Matter . | . . . . Retrieved Matter . | . . . . Retrieved Components . | . . . . Parts Scanalyzed . | . . . . Part Schematics Acquired . | . . . . Parts Damaged . | . . . . Bothacking | -11 -10 -10 -10 ------------ Run | Yrd Mat Min Sub Used RIF Installer . | . . . . Robots Hacked . | . . . . Non-combat . | . . . . Combat . | . . . . Robot Hacks Applied . | . . . . Relay Couplers Released . | . . . . Fabnet Peak Effective % . | . . . . Robots Rewired . | . . . . Allies Hacked . | . . . . Hacks Repelled . | . . . . Allies | -11 -10 -10 -10 -------- Run | Yrd Mat Min Sub Total Allies . | . . . . Largest Group . | . . . . Highest-Rated Group . | . . . . Highest-Rated Ally . | . . . . Total Orders . | . . . . Ally Attacks . | . . . . Total Damage . | . . . . Kills . | . . . . Allies Corrupted . | . . . . Allies Melted . | . . . . Intel | -11 -10 -10 -10 ------- Run | Yrd Mat Min Sub Robot Analysis Total . | . . . . Derelict Logs Recovered 2 | . . . 2 Drone Launches . | . . . . Drone Recoveries . | . . . . Exploration | -11 -10 -10 -10 ------------- Run | Yrd Mat Min Sub Turns Passed 2354 | 116 263 588 1387 Spaces Moved 1174 | 83 188 206 697 Core 8 | 8 . . . Treads 532 | . . 118 414 Legs . | . . . . Wheels 634 | 75 188 88 283 Hover . | . . . . Flight . | . . . . Fastest Speed 50 | 50 90 105 110 Average Speed 141 | 86 99 136 161 Slowest Speed 240 | 90 105 160 240 Overloaded Moves . | . . . . Propulsion Burnouts . | . . . . Robots Hopped . | . . . . Cave-ins Triggered . | . . . . Exploration Rate (%) 30 | 4 34 40 43 Regions Visited 3 Branch Regions 2 Pre-discovered Areas . | . . . . Known Exits Taken . | . . . . Unknown Exits Taken 3 | 1 1 1 . Scrap Searched . | . . . . Spaces Dug 3 | . . . 3 Terrain Destroyed 3 | . . . 3 Melee 3 | . . . 3 Projectile . | . . . . AOE . | . . . . Terrain Rammed . | . . . . Walls Destroyed . | . . . . Machines Disabled . | . . . . Actions | -11 -10 -10 -10 --------- Run | Yrd Mat Min Sub Total 1707 | 111 256 456 884 Wait 385 | 2 52 216 115 Move 1171 | 82 187 205 697 Hop . | . . . . Pick Up 40 | 12 10 3 15 Fast Attach 1 | . . . 1 Attach 14 | 6 1 1 6 Detach . | . . . . Swap 6 | . . 2 4 Drop 5 | 1 2 1 1 Fire 64 | 8 4 28 24 Melee 21 | . . . 21 Ram . | . . . . Kick . | . . . . Crush . | . . . . Escape Stasis . | . . . . Rewire . | . . . . Trap . | . . . . Miscellaneous . | . . . . Route ------- -11/Scrapyard -10/Materials -10/Mines (discovered 2 exits: [*Mat] / *Sub) -10/Subcaves (discovered 2 exits: [*Mat x2]) History --------- Turn | Location | Event 13 | -11/Scrapyard | Discovered new exit (range 15) 117 | -11/Scrapyard | Entered Materials 248 | -10/Materials | Discovered new exit (range 16) 314 | -10/Materials | Build established: Mutant 380 | -10/Materials | Entered Mines 394 | -10/Mines | Met a Derelict bent on vengeance 429 | -10/Mines | Discovered new exit (range 7) 935 | -10/Mines | Discovered new exit (range 4) 968 | -10/Mines | Entered Subcaves 981 | -10/Subcaves | Discovered new exit (range 14) 988 | -10/Subcaves | Learned Materials terminal intel 1158 | -10/Subcaves | Visited 4L-MR0's lab 1183 | -10/Subcaves | Found Meta Core 1526 | -10/Subcaves | Learned Materials emergency access door positions 1878 | -10/Subcaves | Core integrity fell below 50% 2141 | -10/Subcaves | Build established: Hauler-Mutant 2225 | -10/Subcaves | Core integrity fell below 20% 2280 | -10/Subcaves | Discovered new exit (range 10) 2355 | -10/Subcaves | Destroyed by QW-M77(R) with Subdweller Machine Gun Last Messages --------------- 01908_ Acquired Com. Wheel. 01912_ Acquired Wheel. 01916_ Acquired Imp. Terrain Scanner. 01920_ Acquired 10 matter. 02136_ HE-FMJ(R) destroyed. 02139_ YT-GJ9(R) knocked back. 02147_ Destroyed Sub. Power Source. 02147_ YT-GJ9(R) system corrupted by crushing effect. 02147_ YT-GJ9(R) knocked back. 02163_ YT-GJ9(R) affixes Scrap Shield Fragment to Scrap Shield. 02176_ Acquired 28 matter. 02217_ YT-GJ9(R) affixes Scrap Shield Fragment to Scrap Shield. 02228_ Destroyed Sub. Monowheel. 02228_ YT-GJ9(R) system corrupted by crushing effect. 02229_ YT-GJ9(R) system terminally corrupted. 02280_ EXIT=FOUND Map ----- +----------------------------------------------------+ | ### #### ##????????????????????????????? | | ## ##?## ##?????????????????????????????? | | #??# #??????????????????????????????? | | #??# ##??????????????????????????????? | | #?# #???????????????????????????????? | | ##?# % ##???????????????????????????????? | | #?? ##????????????????????????????????? | | ##?## ##?????????????????????????????????? | | #???###???????????????????????????????????? | | ### ##?????????????????????????????????????????? | | #######??????????????????????????????????????????? | | # #??????????????????????????????????????????????? | | #??????????????????????????????????????????????? | | #??????????????????????????????????????????????? | | #??####????????????????????????????????????????? | | ### ##???????????????????????????????????????? | | ## ##??????????????????????????????????????? | | ##?????????????????????????????????????? | | #???????????####??????????????????????? | | #???????????# ??????????????????????? | | #???????????# ??????????????????????? | | ####????????#### #??????????????????????? | | ##???????????# #??????????????????????? | | ##?????????????? ##?????????????????????? | | ##????????????????# ###???????????????????? | | ## ##????????????####@ "####????????????### ? | | ###%%##??????????## " ##????????? | | ###!*&#??????????# " ## ##?????? ?? | | ## ##?????###??#" " ### ##??? #????? | | # #???#### #### "" #?#" R## #????? | | ## ##### """"""## " #?## #???? | | ?## ## ""### ##?# ### ### #????? | | ?## #### #### ####??? ##????????? | | ?# < ## " #?###???????#?????????? | | ?# ### ### " "" #?????????????????????? | | # ##?# #?# "" ""##?????????????????????? | | # ##??# #?## ### """#??????????????????????? | | #######???####??####?## "##??????????????????????? | | ??????????????????????####???????????????????????? | | ?????????????????????????????????????????????????? | | ?????????????????????????????????????????????????? | | ?????????????????????????????????????????????????? | | ?????????????????????????????????????????????????? | | ?????????????????????????????????????????????????? | | ?????????????????????????????????????????????????? | | ?????????????????????????????????????????????????? | | ?????????????????????????????????????????????????? | | ?????????????????????????????????????????????????? | | ?????????????????????????????????????????????????? | | ?????????????????????????????????????????????????? | +----------------------------------------------------+ Best States ------------- Heat Dissipation 25 Energy Generation 15 Energy Capacity 250 Matter Stores 300 Matter Capacity 300 Sight Range 16 Terrain Scan Density 10 Evasion (%) 42 Recoil Reduction 2 Item Schematics ----------------- None Robot Schematics ------------------ None Fabricated ------------ Nothing Alien Tech Used ----------------- None Achievements -------------- None Challenges ------------ None Game ------ Seed ScrapoidOpticalSuit Manual? 0 Play Time 00:14:37 Cumulative 52.8 hours Start 2024.08.20 @ 18:18:41 End 2024.08.20 @ 18:46:04 Sessions 2 Manual Loads 0 Difficulty Rogue Special Mode None Game No. 86 Rogue 82 Adventurer 4 Explorer 0 Win Type - Total 0 Types 0/0/0/0/0/0/0/0/0 Lore% 22 Gallery% 39 Achievement% 30 Wizard Run 0 Options --------- Layout 2 ASCII 0 Keyboard 0 Movement Mouse Keybinds 0 Fullscreen 2 Font 24/Smallcaps Map View 50x44 Zoom Use 0% Tactical HUD 1 Map Filters NONE Filters NONE Steam 1 RUN: 1b19f328-e2cf-4d93-93ec-c8dce1aaa5a1